bitfinex/quotes_BTCUSD_20250922
["timestamp","ask_amount","ask_price","bid_price","bid_amount"]
[1758558423888,0.99197988,113030.0,113020.0,0.09742157]
[1758558424092,1.02375848,113030.0,113020.0,0.06726967]
[1758558424277,0.99529988,113030.0,113020.0,0.06726967]
[1758558424691,0.99529988,113030.0,113020.0,0.17370967]
[1758558425200,0.99529988,113030.0,113020.0,0.06726967]
[1758558425543,0.99529988,113030.0,113020.0,0.19458967]
[1758558426356,0.99529988,113030.0,113020.0,0.06726967]
[1758558426561,0.99529988,113030.0,113020.0,0.35186967]
[1758558426961,0.99529988,113030.0,113020.0,0.06726967]
[1758558427152,0.99529988,113030.0,113020.0,0.35186967]
[1758558427553,1.02375848,113030.0,113020.0,0.06726967]
[1758558427760,0.99529988,113030.0,113020.0,0.06726967]
[1758558427975,0.99529988,113030.0,113020.0,0.17742967]
[1758558428595,0.54649988,113030.0,113020.0,0.17742967]
[1758558428800,0.52357417,113030.0,113020.0,0.17742967]
[1758558430184,0.54567651,113030.0,113020.0,0.17742967]
[1758558430922,0.54567651,113030.0,113020.0,0.06726967]
[1758558431122,0.54567651,113030.0,113020.0,0.35158967]
[1758558432512,0.54567651,113030.0,113020.0,0.35150967]
[1758558433164,0.54567651,113030.0,113020.0,0.06726967]
[1758558433339,0.54567651,113030.0,113020.0,0.29012]
[1758558434202,0.54567651,113030.0,113020.0,0.006]
[1758558434405,0.57413511,113030.0,113020.0,0.29012]
[1758558434947,0.54567651,113030.0,113020.0,0.29012]
[1758558435607,0.57413511,113030.0,113020.0,0.29012]
[1758558435981,0.54567651,113030.0,113020.0,0.29012]
[1758558437130,0.54567651,113030.0,113020.0,0.28992]
[1758558439064,0.54235651,113030.0,113020.0,0.28992]
[1758558439201,0.54567651,113030.0,113020.0,0.28992]
[1758558439853,0.54567651,113030.0,113020.0,0.28792]
[1758558440276,0.54567651,113030.0,113020.0,0.28492]
[1758558442783,0.54432651,113030.0,113020.0,0.28492]
[1758558442983,0.54100651,113030.0,113020.0,0.28492]
[1758558444656,0.53904651,113030.0,113020.0,0.28695]
[1758558444882,0.53904651,113030.0,113020.0,0.28994]
[1758558445056,0.53904651,113030.0,113020.0,0.31406]
[1758558445883,0.53904651,113030.0,113020.0,0.39932967]
[1758558446486,0.36210234,113030.0,113020.0,0.39932967]
[1758558446635,0.53904651,113030.0,113020.0,0.39932967]
[1758558449454,0.53904651,113030.0,113020.0,0.39888967]
[1758558449601,0.53904651,113030.0,113020.0,0.49452967]
[1758558449810,0.53904651,113030.0,113020.0,0.49444967]
[1758558450815,0.53904651,113030.0,113020.0,0.39876967]
[1758558451018,0.53904651,113030.0,113020.0,0.49440967]
[1758558451606,0.53904651,113030.0,113020.0,0.11540967]
[1758558452199,0.56564627,113030.0,113020.0,0.29656967]
[1758558452395,0.56564627,113030.0,113020.0,0.11540967]
[1758558452599,0.56564627,113030.0,113020.0,0.49428967]
[1758558453854,0.56564627,113030.0,113020.0,0.11540967]
[1758558454237,0.56564627,113030.0,113020.0,0.49428967]
[1758558454551,0.56564627,113030.0,113020.0,0.11540967]
[1758558454751,0.56564627,113030.0,113020.0,0.49436967]
[1758558455356,0.56564627,113030.0,113020.0,0.11540967]
[1758558455609,0.56762627,113030.0,113020.0,0.23914967]
[1758558456026,0.56762627,113030.0,113020.0,0.08626967]
[1758558456172,0.56762627,113030.0,113020.0,0.36958967]
[1758558456371,0.56762627,113030.0,113020.0,0.08626967]
[1758558456570,0.56762627,113030.0,113020.0,0.36954967]
[1758558457260,0.56762627,113030.0,113020.0,0.36950967]
[1758558457843,0.56762627,113030.0,113020.0,0.37161967]
[1758558458002,0.54552393,113030.0,113020.0,0.08626967]
[1758558458385,0.54552393,113030.0,113020.0,0.23582967]
[1758558460142,0.58086494,113030.0,113020.0,0.23582967]
[1758558460722,0.58086494,113030.0,113020.0,0.36922967]
[1758558461652,0.58086494,113030.0,113020.0,0.39220967]
[1758558461826,0.58086494,113030.0,113020.0,0.39431967]
[1758558463107,0.58086494,113030.0,113020.0,0.39220967]
[1758558463323,0.58086494,113030.0,113020.0,0.36922967]
[1758558464799,0.58086494,113030.0,113020.0,0.08626967]
[1758558465009,0.61399354,113030.0,113020.0,0.001]
[1758558465197,0.61399354,113030.0,113020.0,0.138]
[1758558466101,0.61399354,113030.0,113020.0,0.001]
[1758558466222,0.61399354,113030.0,113020.0,0.27068]
[1758558466426,0.61399354,113030.0,113020.0,0.001]
[1758558466847,0.58553494,113030.0,113020.0,0.001]
[1758558467254,0.61399354,113030.0,113020.0,0.001]
[1758558470667,0.86781494,113030.0,113020.0,0.001]
[1758558471010,0.51697548,113010.0,113000.0,0.05169]
[1758558471148,0.51697548,113010.0,113000.0,0.13695967]
[1758558471348,0.51697548,113010.0,113000.0,0.13906967]
[1758558471752,0.54358072,113010.0,113000.0,0.13906967]
[1758558472174,0.54358072,113010.0,113000.0,0.14506967]
[1758558472556,0.54358072,113010.0,113000.0,0.16276878]
[1758558473388,0.54358072,113010.0,113000.0,0.14506967]
[1758558473563,0.54358072,113010.0,113000.0,0.16276878]
[1758558473758,0.54358072,113010.0,113000.0,0.14506967]
[1758558473958,0.54358072,113010.0,113000.0,0.09656967]
[1758558474166,0.54358072,113010.0,113000.0,0.40206967]
[1758558475514,0.51697548,113010.0,113000.0,0.43222157]
[1758558477225,0.34,113010.0,113000.0,0.43222157]
[1758558479015,0.02660314,113020.0,113010.0,0.0301519]
[1758558479206,0.21243903,113030.0,113010.0,0.15594494]
[1758558479485,0.03549222,113030.0,113020.0,0.51974157]
[1758558479656,0.03549222,113030.0,113020.0,0.52173157]
[1758558479862,0.34,113030.0,113020.0,0.52173157]
[1758558480817,0.343,113030.0,113020.0,0.52173157]
[1758558481015,0.51994417,113030.0,113020.0,0.14365157]
[1758558481216,0.51994417,113030.0,113020.0,0.52177157]
[1758558481628,0.51994417,113030.0,113020.0,0.42597157]
[1758558481826,0.51994417,113030.0,113020.0,0.52165157]
[1758558482166,0.52094417,113030.0,113020.0,0.52161157]
[1758558482364,0.344,113030.0,113020.0,0.14365157]
[1758558482766,0.344,113030.0,113020.0,0.52157157]
[1758558482926,0.52094417,113030.0,113020.0,0.14365157]
[1758558483364,0.52094417,113030.0,113020.0,0.40641157]
[1758558484180,0.344,113030.0,113020.0,0.40641157]
[1758558485317,0.52094417,113030.0,113020.0,0.40641157]
[1758558487107,0.344,113030.0,113020.0,0.40641157]
[1758558487310,0.52094417,113030.0,113020.0,0.40641157]
[1758558487887,0.52094417,113030.0,113020.0,0.14365157]
[1758558488101,0.52094417,113030.0,113020.0,0.52125157]
[1758558489099,0.344,113030.0,113020.0,0.14365157]
[1758558489518,0.52094417,113030.0,113020.0,0.14365157]
[1758558489959,0.52094417,113030.0,113020.0,0.40413157]
[1758558490416,0.344,113030.0,113020.0,0.40413157]
[1758558491048,0.7928,113030.0,113020.0,0.40413157]
[1758558491383,0.96974417,113030.0,113020.0,0.14365157]
[1758558491847,0.96974417,113030.0,113020.0,0.30785157]
[1758558492092,0.96974417,113030.0,113020.0,0.14365157]
[1758558492269,0.96974417,113030.0,113020.0,0.52093157]
[1758558492701,0.96974417,113030.0,113020.0,0.42529157]
[1758558493012,0.96974417,113030.0,113020.0,0.52093157]
[1758558493762,0.7928,113030.0,113020.0,0.52093157]
[1758558494728,0.96974417,113030.0,113020.0,0.52093157]
[1758558495384,0.7928,113030.0,113020.0,0.52093157]
[1758558496183,0.96974417,113030.0,113020.0,0.14062157]
[1758558496407,0.96974417,113030.0,113020.0,0.52092157]
[1758558497073,0.96974417,113030.0,113020.0,0.52164157]
[1758558498237,0.7928,113030.0,113020.0,0.52164157]
[1758558499297,0.96974417,113030.0,113020.0,0.52164157]
[1758558500314,0.96974417,113030.0,113020.0,0.52172157]
[1758558500626,0.96974417,113030.0,113020.0,0.14380157]
[1758558500831,0.97172417,113030.0,113020.0,0.11542157]
[1758558501037,0.97172417,113030.0,113020.0,0.28206157]
[1758558501237,1.00153277,113030.0,113020.0,0.11542157]
[1758558501442,1.00485277,113030.0,113020.0,0.11542157]
[1758558501644,1.00485277,113030.0,113020.0,0.26526157]
[1758558502093,1.00485277,113030.0,113020.0,0.39762157]
[1758558502447,1.00485277,113030.0,113020.0,0.39758157]
[1758558503585,0.97639417,113030.0,113020.0,0.39758157]
[1758558504524,1.00153277,113030.0,113020.0,0.36742967]
[1758558504733,1.00485277,113030.0,113020.0,0.36742967]
[1758558504975,1.03145273,113030.0,113020.0,0.36742967]
[1758558505356,1.00299413,113030.0,113020.0,0.36742967]
[1758558506799,1.00299413,113030.0,113020.0,0.36718967]
[1758558508757,0.55419413,113030.0,113020.0,0.36718967]
[1758558509712,0.55419413,113030.0,113020.0,0.36698967]
[1758558510161,0.54952413,113030.0,113020.0,0.36698967]
[1758558510454,0.54754413,113030.0,113020.0,0.39663967]
[1758558510873,0.54952413,113030.0,113020.0,0.39663967]
[1758558511072,0.54952413,113030.0,113020.0,0.39346967]
[1758558511497,0.54952413,113030.0,113020.0,0.36913967]
[1758558511626,0.54952413,113030.0,113020.0,0.36698967]
[1758558514123,0.54952413,113030.0,113020.0,0.36694967]
[1758558514325,0.55419413,113030.0,113020.0,0.08526967]
[1758558514506,0.58265273,113030.0,113020.0,0.36682967]
[1758558515211,0.17697548,113010.0,113000.0,0.0576519]
[1758558515406,0.17697548,113010.0,113000.0,0.52012157]
[1758558515604,0.17697548,113010.0,113000.0,0.52227157]
[1758558516674,0.20357612,113020.0,113000.0,0.52427157]
[1758558516875,0.54357612,113020.0,113010.0,0.13046721]
[1758558517165,0.54357612,113020.0,113010.0,0.11491967]
[1758558517749,0.54357612,113020.0,113010.0,0.13261721]
[1758558517943,0.54357612,113020.0,113010.0,0.11491967]
[1758558518299,0.54357612,113020.0,113010.0,0.39639967]
[1758558520063,0.54357612,113020.0,113010.0,0.39739967]
[1758558521050,0.3666021,113020.0,113010.0,0.39739967]
[1758558521228,0.34,113020.0,113010.0,0.42755157]
[1758558521510,0.51695983,113020.0,113010.0,0.42755157]
[1758558521714,0.51695983,113020.0,113010.0,0.14607157]
[1758558521918,0.51695983,113020.0,113010.0,0.42755157]
[1758558522126,0.34,113020.0,113010.0,0.42755157]
[1758558522327,0.51695983,113020.0,113010.0,0.14607157]
[1758558522506,0.51893983,113020.0,113010.0,0.40005157]
[1758558522867,0.55530944,113020.0,113010.0,0.40005157]
[1758558523747,0.55530944,113020.0,113010.0,0.42438157]
[1758558523950,0.55530944,113020.0,113010.0,0.42755157]
[1758558524157,0.55332944,113020.0,113010.0,0.42755157]
[1758558524358,0.55530944,113020.0,113010.0,0.14607157]
[1758558524558,0.55530944,113020.0,113010.0,0.14075157]
[1758558524764,0.55530944,113020.0,113010.0,0.31378157]
[1758558525246,0.55332944,113020.0,113010.0,0.31695157]
[1758558525649,0.55530944,113020.0,113010.0,0.08626967]
[1758558525785,0.55530944,113020.0,113010.0,0.36778967]
[1758558525786,0.55997944,113020.0,113010.0,0.36778967]
[1758558525992,0.55530944,113020.0,113010.0,0.36778967]
[1758558526194,0.58191105,113020.0,113010.0,0.36778967]
[1758558527964,0.58191105,113020.0,113010.0,0.08626967]
[1758558528167,0.58658105,113020.0,113010.0,0.36774967]
[1758558528495,0.58191105,113020.0,113010.0,0.36774967]
[1758558529220,0.58191105,113020.0,113010.0,0.08626967]
[1758558529435,0.58191105,113020.0,113010.0,0.36774967]
[1758558530633,0.58191105,113020.0,113010.0,0.36989967]
[1758558531003,0.58523105,113020.0,113010.0,0.08626967]
[1758558531211,0.58658105,113020.0,113010.0,0.36774967]
[1758558531444,0.58191105,113020.0,113010.0,0.36774967]
[1758558533796,0.61503965,113020.0,113010.0,0.08626967]
[1758558534153,0.64094772,113020.0,113010.0,0.21636]
[1758558536714,0.64094772,113020.0,113010.0,0.001]
[1758558539549,0.61503965,113020.0,113010.0,0.001]
[1758558541195,0.58658105,113020.0,113010.0,0.001]
[1758558541607,0.58658105,113020.0,112990.0,0.00014083]
[1758558541608,0.51699115,113000.0,112990.0,0.00014083]
[1758558541810,0.57135782,113000.0,112990.0,0.00014083]
[1758558541996,0.57800782,113000.0,112990.0,0.00014083]
[1758558542377,0.88609761,113000.0,112990.0,0.00014083]
[1758558544913,0.95278812,113000.0,112990.0,0.00014083]
[1758558545670,0.64284952,113000.0,112990.0,0.00014083]
[1758558545868,0.89842145,113000.0,112990.0,0.00014083]
[1758558547992,0.61694145,113000.0,112990.0,0.00014083]
[1758558548401,0.89842145,113000.0,112990.0,0.00014083]
[1758558549263,0.95278812,113000.0,112990.0,0.00014083]
[1758558549458,0.89842145,113000.0,112990.0,0.00014083]
[1758558549859,0.95278812,113000.0,112990.0,0.00014083]
[1758558550906,0.96178812,113000.0,112990.0,0.00014083]
[1758558551079,0.95478812,113000.0,112990.0,0.00014083]
[1758558551281,0.95978812,113000.0,112990.0,0.00014083]
[1758558551530,0.96178812,113000.0,112990.0,0.00014083]
[1758558551724,0.96182812,113000.0,112990.0,0.00014083]
[1758558551997,0.68030812,113000.0,112990.0,0.00014083]
[1758558552196,0.96182812,113000.0,112990.0,0.00014083]
[1758558552400,1.08379403,113000.0,112990.0,0.00014083]
[1758558552598,0.80231403,113000.0,112990.0,0.00014083]
[1758558552807,1.08383403,113000.0,112990.0,0.00014083]
[1758558553008,1.17951403,113000.0,112990.0,0.00014083]
[1758558553943,0.80231403,113000.0,112990.0,0.00014083]
[1758558554158,1.17951403,113000.0,112990.0,0.00014083]
[1758558555181,1.12514736,113000.0,112990.0,1e-08]
[1758558555437,0.80231403,113000.0,112990.0,1e-08]
[1758558555633,1.17951403,113000.0,112990.0,1e-08]
[1758558556663,1.14277779,113000.0,112990.0,1e-08]
[1758558557366,1.14897685,113000.0,112990.0,1e-08]
[1758558557640,1.18540746,113000.0,112990.0,1e-08]
[1758558559087,1.2019392,113000.0,112990.0,1e-08]
[1758558559996,0.8247392,113000.0,112990.0,1e-08]
[1758558560231,1.2018992,113000.0,112990.0,1e-08]
[1758558561832,1.2951292,113000.0,112990.0,1e-08]
[1758558563347,1.69701268,113000.0,112990.0,1e-08]
[1758558565383,1.6606031,113000.0,112990.0,1e-08]
[1758558566954,1.2834431,113000.0,112990.0,1e-08]
[1758558567391,1.6909429,113000.0,112990.0,1e-08]
[1758558568387,1.3137429,113000.0,112990.0,1e-08]
[1758558568706,1.66503483,113000.0,112990.0,1e-08]
[1758558568909,0.65474213,112980.0,112970.0,1e-08]
[1758558569111,0.92280268,112980.0,112970.0,1e-08]
[1758558569343,0.92280268,112980.0,112970.0,0.00214001]
[1758558569559,0.94942087,112980.0,112970.0,0.00214001]
[1758558569936,0.94943637,112980.0,112970.0,0.00214001]
[1758558570892,0.66795637,112980.0,112970.0,0.02487001]
[1758558571093,0.94943637,112980.0,112970.0,0.02487001]
[1758558571330,0.94943394,112980.0,112970.0,0.02487001]
[1758558571749,0.95140394,112980.0,112970.0,0.02487001]
[1758558571930,0.94943394,112980.0,112970.0,0.02487001]
[1758558573230,0.92666904,112980.0,112970.0,0.02487001]
[1758558573450,0.94945977,112980.0,112970.0,0.02487001]
[1758558573669,0.57474977,112980.0,112970.0,0.02487001]
[1758558573894,0.85622977,112980.0,112970.0,0.02487001]
[1758558574079,0.85819977,112980.0,112970.0,0.02487001]
[1758558574369,0.95142977,112980.0,112970.0,0.02487001]
[1758558574568,0.85819977,112980.0,112970.0,0.02487001]
[1758558575710,0.57474977,112980.0,112970.0,0.02487001]
[1758558575950,0.85618977,112980.0,112970.0,0.02487001]
[1758558577048,0.88611599,112980.0,112970.0,0.02487001]
[1758558577509,0.88611673,112980.0,112970.0,0.02487001]
[1758558579833,0.88808673,112980.0,112970.0,0.02487001]
[1758558580032,0.9424534,112980.0,112970.0,0.02487001]
[1758558580874,0.9404834,112980.0,112970.0,0.02487001]
[1758558581052,0.88611673,112980.0,112970.0,0.02487001]
[1758558581666,0.9456134,112980.0,112950.0,0.04043694]
[1758558581949,0.51705382,112960.0,112950.0,0.02273]
[1758558582119,0.5170897,112940.0,112930.0,0.1743119]
[1758558582322,0.5170897,112940.0,112930.0,0.2721719]
[1758558582581,0.5170897,112940.0,112930.0,0.2752719]
[1758558582704,0.5170897,112940.0,112930.0,0.0581219]
[1758558582903,0.5170897,112940.0,112930.0,0.23911157]
[1758558583129,0.5437066,112940.0,112930.0,0.23911157]
[1758558583372,0.54375346,112940.0,112930.0,0.23911157]
[1758558583705,0.54375346,112940.0,112930.0,0.14339157]
[1758558583911,0.54375346,112940.0,112930.0,0.11323967]
[1758558584115,0.54375346,112940.0,112930.0,0.11923967]
[1758558584803,0.63698346,112940.0,112930.0,0.13323967]
[1758558585122,0.54375346,112940.0,112930.0,0.13037967]
[1758558586980,0.54375346,112940.0,112930.0,0.12437967]
[1758558587349,0.54375346,112940.0,112930.0,0.11337967]
[1758558587559,0.54375346,112940.0,112930.0,0.12037967]
[1758558589792,0.54375346,112940.0,112930.0,0.13808975]
[1758558590820,0.54375346,112940.0,112930.0,0.12037967]
[1758558591149,0.57509623,112940.0,112930.0,0.12037967]
[1758558596248,0.54375346,112940.0,112930.0,0.12037967]
[1758558597998,0.54375346,112940.0,112930.0,0.12013967]
[1758558600507,0.54375346,112940.0,112930.0,0.12331967]
[1758558600746,0.54375346,112940.0,112930.0,0.40153967]
[1758558601136,0.57412016,112940.0,112930.0,0.40153967]
[1758558601977,0.39703046,112940.0,112930.0,0.43487157]
[1758558602364,0.39703046,112940.0,112930.0,0.15347157]
[1758558602805,0.57622563,112940.0,112930.0,0.15029157]
[1758558603016,0.57622563,112940.0,112930.0,0.35697157]
[1758558603154,0.57947563,112940.0,112930.0,0.28969967]
[1758558603363,0.60793423,112940.0,112930.0,0.28969967]
[1758558603558,0.60793423,112940.0,112930.0,0.40153967]
[1758558603897,0.60468423,112940.0,112930.0,0.12013967]
[1758558604036,0.60793423,112940.0,112930.0,0.40153967]
[1758558604269,0.60793423,112940.0,112930.0,0.12013967]
[1758558604562,0.60793423,112940.0,112930.0,0.09526967]
[1758558604798,0.63143423,112940.0,112930.0,0.09526967]
[1758558605687,0.60297563,112940.0,112930.0,0.09526967]
[1758558606575,0.57947563,112940.0,112930.0,0.09526967]
[1758558607022,0.6573423,112940.0,112930.0,0.01]
[1758558608200,0.6573423,112940.0,112930.0,0.007]
[1758558608891,0.51711654,112920.0,112910.0,0.26415]
[1758558609090,0.52247654,112920.0,112910.0,0.38941967]
[1758558609586,0.52247654,112920.0,112910.0,0.10801967]
[1758558609767,0.57684321,112920.0,112910.0,0.08526967]
[1758558610006,0.60034321,112920.0,112910.0,0.08526967]
[1758558610181,0.626968,112920.0,112910.0,0.08526967]
[1758558610381,0.5985094,112920.0,112910.0,0.08526967]
[1758558610527,0.54910133,112920.0,112910.0,0.10801967]
[1758558610728,0.54910133,112920.0,112910.0,0.11101967]
[1758558611358,0.54910133,112920.0,112910.0,0.11801967]
[1758558611553,0.5492476,112920.0,112910.0,0.11801967]
[1758558611758,0.5492476,112920.0,112910.0,0.09526967]
[1758558612030,0.5727476,112920.0,112910.0,0.09526967]
[1758558612598,0.57260133,112920.0,112910.0,0.0951234]
[1758558613991,0.63984431,112920.0,112910.0,0.0951234]
[1758558614948,0.61634431,112920.0,112910.0,0.0951234]
[1758558615152,0.61634431,112920.0,112910.0,0.1181034]
[1758558615357,0.61309431,112920.0,112910.0,0.0972734]
[1758558615513,0.54374133,112920.0,112910.0,0.1233834]
[1758558615714,0.54374133,112920.0,112910.0,0.14109662]
[1758558616156,0.57438596,112920.0,112910.0,0.13796662]
[1758558616367,0.57950596,112920.0,112910.0,0.0951234]
[1758558616918,0.67273596,112920.0,112910.0,0.1181034]
[1758558617143,0.63277456,112920.0,112910.0,0.0951234]
[1758558617340,0.60796456,112920.0,112910.0,0.0951234]
[1758558617551,0.65868263,112920.0,112910.0,0.0951234]
[1758558618190,0.628038,112920.0,112910.0,0.0951234]
[1758558618691,0.69580616,112920.0,112910.0,0.0951234]
[1758558619331,0.67099616,112920.0,112910.0,0.01]
[1758558619549,0.69580616,112920.0,112910.0,0.003]
[1758558619782,0.51713222,112910.0,112900.0,0.2816]
[1758558619991,0.51909222,112910.0,112900.0,0.11059967]
[1758558620200,0.52225222,112910.0,112900.0,0.08546967]
[1758558620422,0.57369037,112910.0,112900.0,0.08546967]
[1758558620661,0.54888037,112910.0,112900.0,0.08546967]
[1758558620864,0.54888037,112910.0,112900.0,0.08746967]
[1758558621274,0.54888037,112910.0,112900.0,0.09146967]
[1758558621488,0.54888037,112910.0,112900.0,0.11444967]
[1758558621693,0.54888037,112910.0,112900.0,0.09146967]
[1758558621833,0.62805704,112910.0,112900.0,0.09146967]
[1758558622185,0.57478844,112910.0,112900.0,0.11444967]
[1758558622820,0.54376037,112910.0,112900.0,0.11972967]
[1758558623168,0.54376037,112910.0,112900.0,0.11659967]
[1758558624923,0.54376037,112910.0,112900.0,0.11972967]
[1758558625125,0.54376037,112910.0,112900.0,0.11659967]
[1758558625318,0.54572037,112910.0,112900.0,0.11659967]
[1758558626524,0.54376037,112910.0,112900.0,0.11972967]
[1758558626748,0.36662815,112910.0,112900.0,0.13744446]
[1758558626955,0.54376037,112910.0,112900.0,0.13744446]
[1758558628355,0.54376037,112910.0,112900.0,0.40112967]
[1758558629554,0.54573037,112910.0,112900.0,0.39799967]
[1758558629782,0.54376037,112910.0,112900.0,0.37501967]
[1758558629977,0.54573037,112910.0,112900.0,0.39868967]
[1758558630551,0.54573037,112910.0,112900.0,0.09146967]
[1758558630552,0.54894037,112910.0,112900.0,0.09146967]
[1758558630747,0.62630704,112910.0,112900.0,0.37286967]
[1758558631038,0.59812704,112910.0,112900.0,0.37502967]
[1758558631247,0.57221897,112910.0,112900.0,0.39869967]
[1758558631455,0.54376037,112910.0,112900.0,0.39869967]
[1758558632418,0.54573037,112910.0,112900.0,0.39869967]
[1758558634086,0.54573037,112910.0,112900.0,0.39885967]
[1758558634843,0.54894037,112910.0,112900.0,0.39885967]
[1758558635399,0.54894037,112910.0,112900.0,0.39657967]
[1758558635740,0.57194037,112910.0,112900.0,0.09146967]
[1758558636059,0.57194037,112910.0,112900.0,0.37286967]
[1758558636928,0.54894037,112910.0,112900.0,0.09146967]
[1758558637149,0.62630704,112910.0,112900.0,0.37049446]
[1758558639041,0.57194037,112910.0,112900.0,0.37049446]
[1758558639666,1.24578192,112910.0,112900.0,0.37049446]
[1758558640429,1.27424052,112910.0,112900.0,0.37049446]
[1758558640634,1.69140396,112910.0,112900.0,0.37049446]
[1758558641235,1.69140396,112910.0,112900.0,0.08909446]
[1758558641453,1.69140396,112910.0,112900.0,0.37049446]
[1758558642518,1.66294536,112910.0,112900.0,0.37049446]
[1758558642748,1.66294536,112910.0,112900.0,0.006]
[1758558642940,1.68885343,112910.0,112900.0,0.006]
[1758558643114,1.71731203,112910.0,112900.0,0.006]
[1758558643726,1.68885343,112910.0,112900.0,0.006]
[1758558644680,1.97025343,112910.0,112900.0,0.006]
[1758558644856,1.99871203,112910.0,112900.0,0.006]
[1758558648176,2.97051235,112910.0,112900.0,0.00225]
[1758558648689,1.99871203,112910.0,112900.0,0.00225]
[1758558649091,0.61037791,112900.0,112890.0,0.0002]
[1758558649295,1.6342009,112900.0,112890.0,0.08546967]
[1758558649615,1.6623809,112900.0,112890.0,0.08546967]
[1758558649787,1.68901335,112900.0,112890.0,0.08546967]
[1758558650245,2.66081367,112900.0,112890.0,0.00066903]
[1758558650435,1.66055475,112900.0,112890.0,0.00066903]
[1758558650640,1.63464668,112900.0,112890.0,0.00066903]
[1758558651126,1.91604668,112900.0,112890.0,0.00066903]
[1758558651400,1.63464668,112900.0,112890.0,0.00066903]
[1758558651646,1.61164668,112900.0,112890.0,0.00282903]
[1758558651864,1.60646668,112900.0,112890.0,0.1117687]
[1758558654416,1.60646668,112900.0,112890.0,0.1149387]
[1758558654694,1.18930324,112900.0,112890.0,0.1149387]
[1758558654844,0.84930324,112900.0,112890.0,0.1149387]
[1758558655047,1.18930324,112900.0,112890.0,0.13265506]
[1758558655252,1.01449933,112900.0,112890.0,0.13265506]
[1758558655458,1.01449933,112900.0,112890.0,0.16280696]
[1758558655659,0.36663245,112900.0,112890.0,0.16280696]
[1758558655829,1.01449933,112900.0,112890.0,0.16280696]
[1758558657565,0.02663245,112900.0,112890.0,0.16280696]
[1758558657764,0.02663245,112900.0,112890.0,0.44420696]
[1758558657765,0.67449933,112900.0,112890.0,0.44420696]
[1758558657956,1.01449933,112900.0,112890.0,0.5262506]
[1758558658588,1.01449933,112900.0,112890.0,0.1490906]
[1758558658868,1.01449933,112900.0,112890.0,0.5262506]
[1758558659342,1.19164724,112900.0,112890.0,0.4304906]
[1758558659563,1.19164724,112900.0,112890.0,0.5362506]
[1758558660419,1.19164724,112900.0,112890.0,0.1590906]
[1758558660610,1.19164724,112900.0,112890.0,0.5362506]
[1758558661373,1.19164724,112900.0,112890.0,0.4404906]
[1758558661619,1.19164724,112900.0,112890.0,0.5362506]
[1758558661848,1.52069068,112900.0,112890.0,0.1300906]
[1758558662069,1.52069068,112900.0,112890.0,0.4114906]
[1758558662297,1.52069068,112900.0,112890.0,0.1300906]
[1758558662532,1.52069068,112900.0,112890.0,0.4114906]
[1758558662753,1.52069068,112900.0,112890.0,0.3097206]
[1758558662987,1.52069068,112900.0,112890.0,0.1510406]
[1758558663218,1.52069068,112900.0,112890.0,0.4022487]
[1758558663437,1.52069068,112900.0,112890.0,0.3672987]
[1758558663672,1.52069068,112900.0,112890.0,0.3732987]
[1758558663900,1.52069068,112900.0,112890.0,0.0919387]
[1758558664134,1.52069068,112900.0,112890.0,0.2320487]
[1758558664363,1.19364724,112900.0,112890.0,0.2341287]
[1758558664739,1.19364724,112900.0,112890.0,0.2371287]
[1758558664943,1.19364724,112900.0,112890.0,0.1219687]
[1758558665113,1.51758068,112900.0,112890.0,0.4012487]
[1758558665321,1.52069068,112900.0,112890.0,0.4012487]
[1758558665631,1.19675724,112900.0,112890.0,0.4012487]
[1758558665836,1.52069068,112900.0,112890.0,0.1219687]
[1758558666049,1.52069068,112900.0,112890.0,0.11738537]
[1758558666500,1.52069068,112900.0,112890.0,0.23203537]
[1758558666672,1.52069068,112900.0,112890.0,0.37379537]
[1758558666673,1.54514068,112900.0,112890.0,0.37379537]
[1758558666878,1.54514068,112900.0,112890.0,0.09243537]
[1758558667424,1.57359928,112900.0,112890.0,0.09243537]
[1758558667631,1.59950735,112900.0,112890.0,0.09243537]
[1758558667834,2.57130767,112900.0,112890.0,0.09243537]
[1758558668057,1.59950735,112900.0,112890.0,0.09243537]
[1758558668260,2.85266767,112900.0,112890.0,0.09243537]
[1758558668462,2.85266767,112900.0,112890.0,0.08643537]
[1758558668463,1.88086735,112900.0,112890.0,0.08643537]
[1758558668597,1.88186735,112900.0,112890.0,0.08343537]
[1758558668795,1.80305068,112900.0,112890.0,0.08343537]
[1758558669009,1.82750068,112900.0,112890.0,0.08343537]
[1758558670293,1.54614068,112900.0,112890.0,0.08343537]
[1758558671136,1.52169068,112900.0,112890.0,0.08343537]
[1758558671347,0.57434036,112900.0,112890.0,0.08343537]
[1758558671553,1.52169068,112900.0,112890.0,0.08343537]
[1758558671706,1.52169068,112900.0,112890.0,0.10838537]
[1758558672350,1.52169068,112900.0,112890.0,0.11046537]
[1758558672513,0.85464724,112900.0,112890.0,0.11046537]
[1758558672734,1.19464724,112900.0,112890.0,0.11046537]
[1758558673148,1.51858068,112900.0,112890.0,0.11046537]
[1758558673413,1.52169068,112900.0,112890.0,0.11046537]
[1758558673763,1.19464724,112900.0,112890.0,0.11046537]
[1758558675511,1.19364724,112900.0,112890.0,0.11146537]
[1758558675735,1.19688724,112900.0,112890.0,0.39282537]
[1758558676008,1.52082068,112900.0,112890.0,0.39374537]
[1758558676540,1.52082068,112900.0,112890.0,0.39578537]
[1758558676712,1.19364724,112900.0,112890.0,0.39578537]
[1758558677010,1.19364724,112900.0,112890.0,0.11442537]
[1758558677154,1.51758068,112900.0,112890.0,0.39578537]
[1758558677357,1.19364724,112900.0,112890.0,0.39578537]
[1758558677681,1.19688724,112900.0,112890.0,0.11442537]
[1758558677864,1.19688724,112900.0,112890.0,0.39578537]
[1758558678092,1.22280357,112900.0,112890.0,0.39578537]
[1758558678304,1.54673701,112900.0,112890.0,0.39578537]
[1758558678689,1.54673701,112900.0,112890.0,0.39374537]
[1758558679810,1.54673701,112900.0,112890.0,0.39578537]
[1758558680011,1.54349701,112900.0,112890.0,0.37083537]
[1758558680216,1.21756357,112900.0,112890.0,0.39764537]
[1758558681079,1.21756357,112900.0,112890.0,0.11628537]
[1758558681219,1.21756357,112900.0,112890.0,0.39447537]
[1758558682660,1.21753099,112900.0,112890.0,0.39447537]
[1758558683122,1.21969099,112900.0,112890.0,0.39443537]
[1758558686009,1.04038308,112900.0,112890.0,0.42775727]
[1758558686235,0.05254878,112900.0,112890.0,0.42775727]
[1758558686425,1.04038308,112900.0,112890.0,0.52351727]
[1758558686768,0.70038308,112900.0,112890.0,0.52351727]
[1758558686962,1.04038308,112900.0,112890.0,0.52351727]
[1758558688956,0.71646593,112900.0,112890.0,0.52351727]
[1758558689248,0.71646593,112900.0,112890.0,0.14643727]
[1758558689499,1.04038308,112900.0,112890.0,0.52347727]
[1758558690112,0.39254878,112900.0,112890.0,0.52347727]
[1758558690329,0.71646593,112900.0,112890.0,0.52347727]
[1758558690782,0.36663245,112900.0,112890.0,0.52347727]
[1758558691563,0.02663245,112900.0,112890.0,0.52347727]
[1758558691791,0.02663245,112900.0,112890.0,0.57247727]
[1758558692172,0.02663245,112900.0,112890.0,0.57447727]